Cogmind - Beta 13 @@@ ROGUE MODE // 2024.03.12 @ 11:44:38 Player: 3.14 Result: Destroyed by C6-A2P(R) with Subdweller Beam Cannon Performance ------------- Evolutions (0) 0 Regions Visited (2) 400 Robots Destroyed (4) 20 Value Destroyed (122) 122 Prototype IDs (0) 0 Alien Tech Used (0) 0 Bonus (0) 0 TOTAL SCORE: 542 Bonus ------- None Cogmind --------- Core Integrity 0/250 Matter 298/300 Energy 100/100 System Corruption 1% Temperature Cool (9) Movement Core (100) Ox1 Location -10/Subcaves Parts ------- > --- POWER (1) -------- (None) > --- PROPULSION (2) --- (None) > --- UTILITY (2) ------ Small Storage Unit > --- WEAPON (2) ------- (None) > --- INVENTORY (8) ---- Aluminum Leg Aluminum Leg Wheel Compact Wheel Shrapnel Trap Peak State ------------ > --- POWER ------------ Light Ion Engine > --- PROPULSION ------- Aluminum Leg Aluminum Leg > --- UTILITY ---------- Small Storage Unit > --- WEAPON ----------- Assault Rifle Assault Rifle > --- INVENTORY -------- Ion Engine Light Treads Light Treads Wheel Compact Wheel EM Pulse Gun [Rating: 6] Favorites ----------- Power Ion Engine Engine Ion Engine Propulsion Light Treads Treads Light Treads Leg Aluminum Leg Utility Small Storage Unit Storage Small Storage Unit Weapon Assault Rifle Energy Gun EM Pulse Gun Ballistic Gun Assault Rifle Build | -11 -10 -10 ------- Run | Yrd Mat Sub Slots Evolved . | . . . Power . | . . . Propulsion . | . . . Utility . | . . . Weapon . | . . . Parts Attached 5 | 3 1 1 Power 1 | . 1 . Engine 1 | . 1 . Core . | . . . Reactor . | . . . Propulsion 2 | 2 . . Treads 2 | 2 . . Leg . | . . . Wheel . | . . . Hover . | . . . Flight . | . . . Utility . | . . . Device . | . . . Storage . | . . . Processor . | . . . Hackware . | . . . Protection . | . . . Artifact . | . . . Weapon 2 | 1 . 1 Energy Gun 1 | . . 1 Energy Cannon . | . . . Ballistic Gun 1 | 1 . . Ballistic Cannon . | . . . Launcher . | . . . Special Weapon . | . . . Impact Weapon . | . . . Slashing Weapon . | . . . Piercing Weapon . | . . . Special Melee Weapon . | . . . Unidentified Prototypes . | . . . Parts Lost 7 | . 1 6 Power 2 | . 1 1 Propulsion 2 | . . 2 Utility . | . . . Weapon 3 | . . 3 Highest Loss Streak 6 | . 1 6 To Critical Strikes . | . . . Average Slot Usage (%) 82 | . 84 77 Engine 13 | . 13 14 Treads 26 | . 28 23 Storage 14 | . 14 14 Ballistic Gun 26 | . 28 24 Naked Turns . | . . . Heaviest Build 14 | 12 14 14 Greatest Support 40 | 40 40 40 Greatest Overweight (x) 3 | . . 3 Average Overweight (x) . | . . . Largest Inventory Capacity 8 | 8 8 8 Average Capacity 8 | 8 8 8 Most Carried 6 | 6 6 6 Average Carried 5 | 6 5 5 Final Capacity 8 | 8 8 8 Final Carried 6 | 6 5 5 Class Distribution -------------------- 100% | Mutant Dominant Class ---------------- Mutant | -10/Materials Mutant | -10/Subcaves Resources | -11 -10 -10 ----------- Run | Yrd Mat Sub Matter Collected 396 | 230 97 69 Remotely . | . . . Salvage Created 188 | . 113 75 Parts 9 | . 5 4 Haulers Intercepted . | . . . Recyclers Shooed . | . . . Parts Field Recycled . | . . . Retrieved Matter . | . . . Parts Self-Destructed 5 | . . 5 Prevented . | . . . Kills | -11 -10 -10 ------- Run | Yrd Mat Sub Combat Hostiles Destroyed 3 | . 2 1 Guns 3 | . 2 1 Classes Destroyed 4 | . 2 2 Worker 1 | . 1 . Grunt 2 | . 2 . Cobbler 1 | . . 1 Subdweller 1 | . . 1 Best Kill Streak 2 | . 2 1 Combat Bots Only 2 | . 2 1 Max Kills in Single Turn 1 | . 1 1 Gunslinging . | . . . Exploded . | . . . Melee . | . . . Uniques/NPCs Destroyed . | . . . Combat | -11 -10 -10 -------- Run | Yrd Mat Sub Hostile Shots Fired 46 | . 21 25 Missed 11 | . 2 9 Damage Taken 966 | . 248 718 Core 257 | . 42 215 Absorbed by Shields . | . . . Core Remaining (%) 100 | 100 . . Volleys Fired 34 | . 22 12 Largest 2 | . 2 2 Hottest 60 | . 40 60 Shots Fired 66 | . 44 22 Gun 66 | . 44 22 Cannon . | . . . Launcher . | . . . Special . | . . . Kinetic 63 | . 44 19 Thermal . | . . . Explosive . | . . . Electromagnetic 3 | . . 3 Robot Hit Streak 8 | . 8 8 Robot Miss Streak 2 | . 2 1 Penetration Max . | . . . Secondary Targets . | . . . Shots Hit Robots 50 | . 33 17 Core Hits 15 | . 7 8 Critical Kills . | . . . Critical Parts Destroyed . | . . . Critical Strikes . | . . . Melee Attacks . | . . . Impact . | . . . Slashing . | . . . Piercing . | . . . Sneak Attacks . | . . . Combat Hostiles . | . . . Follow-up Attacks . | . . . Damage Inflicted 665 | . 449 216 Guns 657 | . 446 211 Cannons . | . . . Explosions . | . . . Melee . | . . . Ramming 8 | . 3 5 Kinetic 633 | . 446 187 Thermal . | . . . Explosive . | . . . Electromagnetic 24 | . . 24 Impact . | . . . Slashing . | . . . Piercing . | . . . Highest Corruption 1 | . . 1 Average Corruption 1 | . . 1 Corruption Purged . | . . . Corruption Blocked . | . . . Overload Shots . | . . . Overflow Damage . | . . . Projectiles . | . . . Explosions . | . . . Melee . | . . . Knockbacks . | . . . Impact . | . . . Kinetic . | . . . Secondary . | . . . Self-Inflicted Damage 2 | . . 2 Shots . | . . . Rammed 4 | . 2 2 Targets Rammed 4 | . 2 2 Kicked . | . . . Crushed . | . . . Highest Temperature 20 | . 20 . Average Temperature 11 | . 11 . Received Heat Transfer 237 | . 156 81 Siege Activations . | . . . Robots Corrupted . | . . . Combat Hostiles . | . . . Parts Fried . | . . . Impact Corruptions . | . . . Robots Melted . | . . . Combat Hostiles . | . . . Parts Melted . | . . . Heat Transferred . | . . . Parts Sabotaged . | . . . Parts Stolen . | . . . Parts Stripped . | . . . Power Chain Reactions . | . . . Alert | -11 -10 -10 ------- Run | Yrd Mat Sub Peak Influence 45 | . 45 . Initial . | . . . Average 15 | . 15 . Maximum Alert Level . | . . . Low Security (%) 100 | 100 100 . Level 1 . | . . . Level 2 . | . . . Level 3 . | . . . Level 4 . | . . . Level 5 . | . . . High Security . | . . . Max Security . | . . . Squads Dispatched . | . . . Investigation . | . . . Extermination . | . . . Reinforcement . | . . . Assault . | . . . Garrison . | . . . Intercept . | . . . Searches Triggered . | . . . Construction Impeded . | . . . Haulers Reinforced . | . . . Active Scanning Responses . | . . . Cargo Convoy Interrupts . | . . . Stealth | -11 -10 -10 --------- Run | Yrd Mat Sub Distress Signals . | . . . Communications Jammed . | . . . Distress Signals . | . . . Times Spotted 5 | . 2 3 Peak Tracking Total 3 | . 2 3 Tactical Retreats . | . . . Traps | -11 -10 -10 ------- Run | Yrd Mat Sub Traps Triggered . | . . . Indirectly . | . . . Trap Hack Attempts . | . . . Triggered . | . . . Disarmed . | . . . Reprogrammed . | . . . Reused . | . . . Traps Extracted . | . . . Installed . | . . . Triggered . | . . . Most Traps Carried 1 | . . 1 Machines | -11 -10 -10 ---------- Run | Yrd Mat Sub Machines Disabled . | . . . Max in Single Turn . | . . . Machines Repaired . | . . . Machines Dismantled . | . . . Machines Sabotaged . | . . . Overloaded Fab Kills . | . . . Hacking | -11 -10 -10 --------- Run | Yrd Mat Sub Machines Accessed 1 | . 1 . Terminals 1 | . 1 . Fabricators . | . . . Repair Stations . | . . . Recycling Units . | . . . Scanalyzers . | . . . Garrison Access . | . . . Total Hacks 4 | . 4 . Successful 1 | . 1 . Failed 3 | . 3 . Catastrophic . | . . . Database Lockouts . | . . . Manual 4 | . 4 . Terminals 4 | . 4 . Fabricators . | . . . Repair Stations . | . . . Recycling Units . | . . . Scanalyzers . | . . . Garrison Access . | . . . Terminal Hacks 1 | . 1 . Robot Analysis 1 | . 1 . Fabricator Hacks . | . . . Repair Station Hacks . | . . . Recycling Unit Hacks . | . . . Scanalyzer . | . . . Garrison Access Hacks . | . . . Unauthorized Hacks . | . . . Terminals . | . . . Fabricators . | . . . Repair Stations . | . . . Recycling Units . | . . . Scanalyzers . | . . . Garrison Access . | . . . Data Cores Recovered . | . . . Used . | . . . Hacking Detections 1 | . 1 . Full Trace Events . | . . . Feedback Events . | . . . Feedback Blocked . | . . . Robot Schematics Acquired . | . . . Robots Built . | . . . Authchips . | . . . Time . | . . . Total Robot Build Rating . | . . . Part Schematics Acquired . | . . . Parts Built . | . . . Authchips . | . . . Time . | . . . Total Part Build Rating . | . . . Parts Repaired . | . . . Time . | . . . Parts Recycled . | . . . Recycled Matter . | . . . Retrieved Matter . | . . . Retrieved Components . | . . . Parts Scanalyzed . | . . . Part Schematics Acquired . | . . . Parts Damaged . | . . . Bothacking | -11 -10 -10 ------------ Run | Yrd Mat Sub Used RIF Installer . | . . . Robots Hacked . | . . . Non-combat . | . . . Combat . | . . . Robot Hacks Applied . | . . . Relay Couplers Released . | . . . Fabnet Peak Effective % . | . . . Robots Rewired . | . . . Allies Hacked . | . . . Hacks Repelled . | . . . Allies | -11 -10 -10 -------- Run | Yrd Mat Sub Total Allies . | . . . Largest Group . | . . . Highest-Rated Group . | . . . Highest-Rated Ally . | . . . Total Orders . | . . . Ally Attacks . | . . . Total Damage . | . . . Kills . | . . . Allies Corrupted . | . . . Allies Melted . | . . . Intel | -11 -10 -10 ------- Run | Yrd Mat Sub Robot Analysis Total 1 | . 1 . Derelict Logs Recovered . | . . . Drone Launches . | . . . Drone Recoveries . | . . . Exploration | -11 -10 -10 ------------- Run | Yrd Mat Sub Turns Passed 634 | 8 422 204 Spaces Moved 185 | 3 81 101 Core 10 | . . 10 Treads 175 | 3 81 91 Legs . | . . . Wheels . | . . . Hover . | . . . Flight . | . . . Fastest Speed 100 | 160 160 100 Average Speed 161 | 160 160 161 Slowest Speed 200 | 160 160 200 Overloaded Moves . | . . . Propulsion Burnouts . | . . . Robots Hopped . | . . . Cave-ins Triggered . | . . . Exploration Rate (%) 10 | 2 20 10 Regions Visited 2 Branch Regions 1 Pre-discovered Areas . | . . . Known Exits Taken . | . . . Unknown Exits Taken 2 | 1 1 . Scrap Searched . | . . . Spaces Dug . | . . . Terrain Destroyed . | . . . Melee . | . . . Projectile . | . . . AOE . | . . . Terrain Rammed . | . . . Walls Destroyed . | . . . Machines Disabled . | . . . Actions | -11 -10 -10 --------- Run | Yrd Mat Sub Total 453 | 5 328 120 Wait 226 | . 223 3 Move 183 | 2 80 101 Hop . | . . . Pick Up 1 | . . 1 Fast Attach . | . . . Attach 2 | . 1 1 Detach . | . . . Swap 3 | 3 . . Drop . | . . . Fire 34 | . 22 12 Melee . | . . . Ram 2 | . . 2 Kick . | . . . Crush 2 | . 2 . Escape Stasis . | . . . Rewire . | . . . Trap . | . . . Miscellaneous . | . . . Route ------- -11/Scrapyard -10/Materials -10/Subcaves History --------- Turn | Location | Event 6 | -11/Scrapyard | Discovered new exit (range 1) 9 | -11/Scrapyard | Entered Materials 305 | -10/Materials | Build established: Mutant 385 | -10/Materials | Discovered new exit (range 10) 431 | -10/Materials | Entered Subcaves 596 | -10/Subcaves | Ambushed by Subdweller buried in earth 616 | -10/Subcaves | Core integrity fell below 50% 630 | -10/Subcaves | Core integrity fell below 20% 635 | -10/Subcaves | Destroyed by C6-A2P(R) with Subdweller Beam Cannon Last Messages --------------- 00493_ VY-GFQ(O) collects matter. 00504_ VY-GFQ(O) cries out in pain. 00504_ VY-GFQ(O) destroyed. Y3-EF9(R) emerges from concealment. 00510_ Acquired 33 matter. 00513_ Acquired Shrapnel Trap. 00532_ Acquired 13 matter. 00537_ Acquired 14 matter. 00545_ Acquired 9 matter. 00597_ GF-4UE(R): "ARGHSUB!" 00599_ GF-4UE(R) destroyed. 00601_ Assault Rifle destroyed. 00603_ Lgt. Treads destroyed. 00611_ EM Pulse Gun destroyed. 00615_ Assault Rifle destroyed. 00631_ Ion Engine destroyed. 00633_ Slammed into QJ-Z1Y(R). 00633_ Destabilizing: System corrupted (+1). 00635_ Slammed into QJ-Z1Y(R). 00635_ Destabilizing: Core damaged (-7). Map ----- +----------------------------------------------------+ | ?????????????????????????????????????????????????? | | ?????????????????????????????????????????????????? | | ?????????????????????????????????????????????????? | | ?????????????????????????????????????????????????? | | ?????????????????????????????????????????????????? | | ?????????????????????????????????????????????????? | | ?????????????????????????????????????????????????? | | ?????????????????????????????????????????????????? | | ?????????????????????????????????????????????????? | | ?????????????????????????????????????????????????? | | ?????????????????????????????????????????????????? | | ?????????????????????????????????????????????????? | | ???????????????????????????????#?????????????????? | | ???????????????? ????????????? ?????????????????? | | ?????????????? ????????????# ?????????????????? | | ?????????????? ??????????? ?##??????????????? | | ????????????? ????????### # #??????????????? | | ????????????? ???????# " " #?????##???????? | | ???????????? ???????# ##??## ##??????? | | ???????????? ??????? #??# #??????? | | ???????????? #?###??? #???# #??????? | | ????????????? ## #??? ???## #??????? | | ???????????????? #?### ##### #??????? | | ??????????????????# #?# # ; #???????? | | ???????????????????# ###; ##???????? | | ??????????????????## R@ ; #????????? | | ??????????????????# R ######???? | | ??????????????????# #???? | | ??????????????????# ##; ##???? | | ??????????????????##### ### #????? | | ??????????????????????#####?# ##???? | | ???????????????????????????# #???? | | ???????????????????????????### #???? | | ?????????????????????????????### ## ## #???? | | ???????????????????????????????####### ## #???? | | ?????????????????????????????????????# #???? | | ?????????????????????????????????????# #???? | | ?????????????????????????????????????# #???? | | ?????????????????????????????????????# ###?? | | ?????????????????????????????????????# #?? | | ?????????????????????????????????????# ## ##?? | | ????????????????????????????????????## ##?###??? | | ???????????????????????????????????## #???????? | | ??????????????????????????????????## %##???????? | | ????????????????????####?????????## #######??? | | ????????????????##### ##?????#### ##?? | | ??????????####### #?##### | | ?????????## #?# | | ?????????# ##?# ## | | ?????????### ##### #??# ### ##?# | +----------------------------------------------------+ Best States ------------- Heat Dissipation 25 Energy Generation 10 Energy Capacity 250 Matter Stores 300 Matter Capacity 300 Sight Range 16 Terrain Scan Density 10 Evasion (%) 40 Recoil Reduction 2 Item Schematics ----------------- None Robot Schematics ------------------ None Fabricated ------------ Nothing Alien Tech Used ----------------- None Achievements -------------- None Challenges ------------ None Game ------ Seed MetaStormBattery Manual? 0 Play Time 00:03:50 Cumulative 871.0 hours Start 2024.03.12 @ 11:40:27 End 2024.03.12 @ 11:44:38 Sessions 1 Manual Loads 0 Difficulty Rogue Special Mode None Game No. 1325 Rogue 1325 Adventurer 0 Explorer 0 Win Type - Total 83 Types 49/1/14/14/4/0/0/1/0 Lore% 89 Gallery% 91 Achievement% 85 Wizard Run 0 Options --------- Layout 0 ASCII 1 Keyboard 0 Movement Numpad Keybinds 0 Fullscreen 2 Font 18/SmallcapsGlow Map View 76x50 Zoom Use 0% Tactical HUD 1 Map Filters NONE Filters NONE Steam 1 RUN: f8e3c107-19bb-4ba5-aea8-ef055dc97634